bitfinex/quotes_BTCUSD_20250519
["timestamp","ask_amount","ask_price","bid_price","bid_amount"]
[1747650199626,0.2037839,103050.0,103040.0,0.58663694]
[1747650199990,0.2037839,103050.0,103040.0,0.58713694]
[1747650200827,0.21348736,103050.0,103040.0,0.58713694]
[1747650201187,0.21348736,103050.0,103040.0,0.57743216]
[1747650201188,0.00970327,103050.0,103040.0,0.57743216]
[1747650201396,0.21348727,103050.0,103040.0,0.57743216]
[1747650202774,0.22319044,103050.0,103040.0,0.57743216]
[1747650204726,0.18827035,103050.0,103040.0,0.57743216]
[1747650205485,0.20767708,103050.0,103040.0,0.57743216]
[1747650205689,0.16111696,103050.0,103040.0,0.57743216]
[1747650206865,0.43158809,103050.0,103040.0,0.00451482]
[1747650207309,0.52889749,103050.0,103040.0,0.00451482]
[1747650207518,0.77807114,103050.0,103040.0,0.00451482]
[1747650207732,0.52889749,103050.0,103040.0,0.00451482]
[1747650208157,0.27972384,103050.0,103040.0,0.00451482]
[1747650208600,0.18241444,103050.0,103040.0,0.00451482]
[1747650208813,0.17271061,103050.0,103040.0,0.19861419]
[1747650209027,0.19211771,103050.0,103040.0,0.20538001]
[1747650209233,0.19211771,103050.0,103040.0,0.0209856]
[1747650209447,0.19211771,103050.0,103040.0,0.01128064]
[1747650209837,0.19211771,103050.0,103040.0,0.0209856]
[1747650211023,0.19211771,103050.0,103040.0,0.01128064]
[1747650211231,0.19211771,103050.0,103040.0,0.0209856]
[1747650211411,0.19211771,103050.0,103040.0,0.00451482]
[1747650211815,0.19211771,103050.0,103040.0,0.01421978]
[1747650212049,0.19211771,103050.0,103040.0,0.00451482]
[1747650212946,0.19211771,103050.0,103040.0,0.20831915]
[1747650213145,0.17082173,103050.0,103040.0,0.22772861]
[1747650213336,0.17082173,103050.0,103040.0,0.21802393]
[1747650213559,0.18592173,103050.0,103040.0,0.20831915]
[1747650213691,0.18592173,103050.0,103040.0,0.01421978]
[1747650213897,0.17621846,103050.0,103040.0,0.01421978]
[1747650214613,0.17621846,103050.0,103040.0,0.21802393]
[1747650214839,0.16111846,103050.0,103040.0,0.22772861]
[1747650215265,0.21348727,103050.0,103040.0,0.23743254]
[1747650215479,0.01940673,103050.0,103040.0,0.23743254]
[1747650215800,0.22319101,103050.0,103040.0,0.23743254]
[1747650216152,0.22319101,103050.0,103040.0,0.23743264]
[1747650216361,0.22319101,103050.0,103040.0,0.23943264]
[1747650216572,0.23289484,103050.0,103040.0,0.23943264]
[1747650217370,0.23289484,103050.0,103040.0,0.24616257]
[1747650217541,0.23289484,103050.0,103040.0,0.24816257]
[1747650217701,0.22319101,103050.0,103040.0,0.24816257]
[1747650218116,0.23289494,103050.0,103040.0,0.24816257]
[1747650219469,0.22319101,103050.0,103040.0,0.24816257]
[1747650219683,0.23289494,103050.0,103040.0,0.24816266]
[1747650219832,0.23289494,103050.0,103040.0,0.25786706]
[1747650220014,0.23289494,103050.0,103040.0,0.24816266]
[1747650220810,0.22319101,103050.0,103040.0,0.25786696]
[1747650220956,0.22319101,103050.0,103040.0,0.24816266]
[1747650221151,0.23289484,103050.0,103040.0,0.25786706]
[1747650222261,0.23289484,103050.0,103040.0,0.25786658]
[1747650222470,0.22319101,103050.0,103040.0,0.25786658]
[1747650223289,0.23289494,103050.0,103040.0,0.24816228]
[1747650223441,0.23289484,103050.0,103040.0,0.24816228]
[1747650223645,0.23289484,103050.0,103040.0,0.23845788]
[1747650224067,0.24259886,103050.0,103040.0,0.23845788]
[1747650224349,0.23289484,103050.0,103040.0,0.23845788]
[1747650224546,0.24259886,103050.0,103040.0,0.23845788]
[1747650224776,0.0388143,103050.0,103040.0,0.24816228]
[1747650225365,0.23289484,103050.0,103040.0,0.23845788]
[1747650225676,0.25550731,103060.0,103050.0,0.21348792]
[1747650225852,0.26521001,103060.0,103050.0,0.20378437]
[1747650226016,0.28447271,103060.0,103050.0,0.22319166]
[1747650226873,0.28447271,103060.0,103050.0,0.22720648]
[1747650227065,0.27477029,103060.0,103050.0,0.21750293]
[1747650227505,0.27477029,103060.0,103050.0,0.22720648]
[1747650227712,0.27477029,103060.0,103050.0,0.21750293]
[1747650228035,0.27477029,103060.0,103050.0,0.22927979]
[1747650228948,0.24317029,103060.0,103050.0,0.23898344]
[1747650229511,0.23346721,103060.0,103050.0,0.2486869]
[1747650229722,0.02,103060.0,103050.0,0.62969026]
[1747650230013,0.00970233,103060.0,103050.0,0.62969026]
[1747650230237,0.01940485,103060.0,103050.0,0.62969026]
[1747650230436,0.02910746,103060.0,103050.0,0.63939876]
[1747650230663,0.01940485,103060.0,103050.0,0.63939876]
[1747650230868,0.00970233,103060.0,103050.0,0.63435183]
[1747650231124,0.01940485,103060.0,103050.0,0.63435183]
[1747650231312,0.01940485,103060.0,103050.0,0.61925183]
[1747650231572,0.00970233,103060.0,103050.0,0.61925183]
[1747650232068,0.01940475,103060.0,103050.0,0.63495183]
[1747650232670,0.02910736,103060.0,103050.0,0.60305183]
[1747650232916,0.03881016,103060.0,103050.0,0.60305183]
[1747650233129,0.02910736,103060.0,103050.0,0.60305183]
[1747650233579,0.22316907,103060.0,103050.0,0.59334333]
[1747650233781,0.03881006,103060.0,103050.0,0.59334333]
[1747650234195,0.05511006,103060.0,103050.0,0.60301879]
[1747650234415,0.07091006,103060.0,103050.0,0.60301879]
[1747650234882,0.45047029,103060.0,103050.0,0.36044877]
[1747650235097,0.68994124,103060.0,103050.0,0.01074475]
[1747650235305,0.68023835,103060.0,103050.0,0.01074475]
[1747650235729,0.68023835,103060.0,103050.0,0.00905782]
[1747650237072,0.68023835,103060.0,103050.0,0.21284229]
[1747650237276,0.68023835,103060.0,103050.0,0.21284238]
[1747650237703,0.4310647,103060.0,103050.0,0.21284238]
[1747650239259,0.68023835,103060.0,103050.0,0.00905782]
[1747650239585,0.77754775,103060.0,103050.0,0.00905782]
[1747650241336,0.58234775,103060.0,103050.0,0.00905782]
[1747650241583,0.5283741,103060.0,103050.0,0.01876175]
[1747650241786,0.5283741,103060.0,103050.0,0.00905782]
[1747650241964,0.77754775,103060.0,103050.0,0.00905782]
[1747650244085,1.0267214,103060.0,103050.0,0.00905782]
[1747650244286,0.77754775,103060.0,103050.0,0.00905782]
[1747650245003,0.20378437,103050.0,103040.0,0.00722993]
[1747650245136,1.44596107,103050.0,103040.0,0.00722993]
[1747650245879,1.46042507,103050.0,103040.0,0.0005]
[1747650246287,1.46342507,103050.0,103040.0,0.0005]
[1747650246493,1.46102507,103050.0,103040.0,0.0005]
[1747650246693,1.46402507,103050.0,103040.0,0.0005]
[1747650248735,2.16242507,103050.0,103040.0,0.0005]
[1747650249364,1.91329142,103050.0,103040.0,0.0005]
[1747650249576,2.09310742,103050.0,103040.0,0.0005]
[1747650249794,2.34228107,103050.0,103040.0,0.0005]
[1747650255843,2.09310742,103050.0,103040.0,0.0005]
[1747650256058,2.09218742,103050.0,103040.0,0.0005]
[1747650256438,1.70170742,103050.0,103040.0,0.0005]
[1747650256649,2.08906742,103050.0,103040.0,0.0005]
[1747650259234,2.33824107,103050.0,103040.0,0.0005]
[1747650261208,1.83989377,103050.0,103040.0,0.0005]
[1747650261449,2.33824107,103050.0,103040.0,0.0005]
[1747650264664,2.14488107,103050.0,103040.0,0.0005]
[1747650264890,2.33836107,103050.0,103040.0,0.0005]
[1747650267492,2.45021132,103050.0,103040.0,0.0005]
[1747650267921,2.45409432,103050.0,103040.0,0.0005]
[1747650268588,2.69378492,103050.0,103040.0,0.0005]
[1747650268989,2.69578492,103050.0,103040.0,0.0005]
[1747650270317,2.69978492,103050.0,103040.0,0.0005]
[1747650272272,2.80198492,103050.0,103040.0,0.0005]
[1747650272487,2.69978492,103050.0,103040.0,0.0005]
[1747650273991,2.50630492,103050.0,103040.0,0.0005]
[1747650274201,2.69886492,103050.0,103040.0,0.0005]
[1747650274411,2.29776407,103050.0,103040.0,0.0005]
[1747650274621,2.43523042,103050.0,103040.0,0.0005]
[1747650274826,2.04859042,103050.0,103040.0,0.0005]
[1747650275029,2.18601677,103050.0,103040.0,0.0005]
[1747650275255,2.43519042,103050.0,103040.0,0.0005]
[1747650275582,2.68436407,103050.0,103040.0,0.0005]
[1747650281321,2.78167347,103050.0,103040.0,0.0005]
[1747650281738,2.68436407,103050.0,103040.0,0.0005]
[1747650284291,2.49176407,103050.0,103040.0,0.0005]
[1747650284490,2.68372407,103050.0,103040.0,0.0005]
[1747650289655,2.01819042,103050.0,103040.0,0.0005]
[1747650289815,2.40207042,103050.0,103040.0,0.0005]
[1747650290013,2.39818742,103050.0,103040.0,0.0005]
[1747650290222,2.20622742,103050.0,103040.0,0.0309]
[1747650290506,2.39818742,103050.0,103040.0,0.0005]
[1747650294256,2.64736107,103050.0,103040.0,0.0005]
[1747650295368,2.66266107,103050.0,103040.0,0.0005]
[1747650297340,2.67816107,103050.0,103040.0,0.0005]
[1747650300475,2.20622742,103050.0,103040.0,0.0005]
[1747650300699,2.39814742,103050.0,103040.0,0.0005]
[1747650303822,2.67882107,103050.0,103040.0,0.0005]
[1747650304481,2.69336192,103050.0,103040.0,0.0005]
[1747650305705,2.00309462,103050.0,103040.0,0.0005]
[1747650305914,2.67836192,103050.0,103040.0,0.0005]
[1747650307100,2.69416192,103050.0,103040.0,0.0005]
[1747650309734,2.52221112,103050.0,103040.0,0.0005]
[1747650310370,2.35901287,103050.0,103040.0,0.0005]
[1747650310592,2.34321287,103050.0,103040.0,0.0005]
[1747650314487,1.92417287,103050.0,103040.0,0.0005]
[1747650314706,2.08737112,103050.0,103040.0,0.0005]
[1747650314913,2.10337112,103050.0,103040.0,0.0005]
[1747650317412,2.10089112,103050.0,103040.0,0.0005]
[1747650318317,1.50681202,103050.0,103040.0,0.0005]
[1747650318528,0.8047094,103050.0,103040.0,0.22629937]
[1747650318750,0.02840682,103050.0,103040.0,0.59541313]
[1747650318981,0.22248792,103050.0,103040.0,0.041285]
[1747650319203,0.40466437,103050.0,103040.0,0.041285]
[1747650319440,0.55815879,103050.0,103040.0,0.041285]
[1747650319651,0.65046819,103050.0,103040.0,0.041285]
[1747650319866,0.73589045,103050.0,103040.0,0.041285]
[1747650320081,0.73789045,103050.0,103040.0,0.041285]
[1747650320540,0.98651096,103050.0,103040.0,0.01564869]
[1747650320751,0.73389045,103050.0,103040.0,0.01564869]
[1747650321001,0.73589045,103050.0,103040.0,0.01564869]
[1747650321214,0.73589045,103050.0,103040.0,0.01060124]
[1747650321429,0.29538994,103050.0,103040.0,0.04250124]
[1747650321642,0.68286994,103050.0,103040.0,0.04250124]
[1747650321871,0.29538994,103050.0,103040.0,0.04250124]
[1747650322088,0.93145045,103050.0,103040.0,0.04250124]
[1747650322945,0.92945045,103050.0,103040.0,0.04250124]
[1747650323168,0.92945045,103050.0,103040.0,0.01060124]
[1747650323169,0.92941045,103050.0,103040.0,0.01060124]
[1747650323378,1.54883096,103050.0,103040.0,0.01060124]
[1747650323792,1.30021045,103050.0,103040.0,0.01060124]
[1747650324011,1.29821045,103050.0,103040.0,0.00656369]
[1747650324679,1.29821045,103050.0,103040.0,0.0005]
[1747650325095,1.54683096,103050.0,103040.0,0.0005]
[1747650325242,1.55083096,103050.0,103040.0,0.0005]
[1747650325655,1.30221045,103050.0,103040.0,0.0005]
[1747650326748,2.00061045,103050.0,103040.0,0.0005]
[1747650327047,1.98491045,103050.0,103040.0,0.0005]
[1747650327262,1.38138994,103050.0,103040.0,0.0323]
[1747650327467,1.38162994,103050.0,103040.0,0.0323]
[1747650327671,1.38162994,103050.0,103040.0,0.04239758]
[1747650328331,1.63025045,103050.0,103040.0,0.04239758]
[1747650328971,1.38162994,103050.0,103040.0,0.04239758]
[1747650329179,1.38166994,103050.0,103040.0,0.04239758]
[1747650330018,1.63029045,103050.0,103040.0,0.04239758]
[1747650333109,1.38166994,103050.0,103040.0,0.04239758]
[1747650334152,1.63029045,103050.0,103040.0,0.04239758]
[1747650334794,1.63029045,103050.0,103040.0,0.01059758]
[1747650345184,1.38166994,103050.0,103040.0,0.01059758]
[1747650345397,1.38166994,103050.0,103040.0,0.04239758]
[1747650346046,1.38166994,103050.0,103040.0,0.02609758]
[1747650346983,1.38166994,103050.0,103040.0,0.01059758]
[1747650349137,1.63029045,103050.0,103040.0,0.01059758]
[1747650357220,1.38166994,103050.0,103040.0,0.01059758]
[1747650357422,1.38166994,103050.0,103040.0,0.01564503]
[1747650357643,1.38166994,103050.0,103040.0,0.04564503]
[1747650357644,0.99378994,103050.0,103040.0,0.04564503]
[1747650357844,1.38354994,103050.0,103040.0,0.04564503]
[1747650358424,1.18742994,103050.0,103040.0,0.04564503]
[1747650358670,1.37942994,103050.0,103040.0,0.04564503]
[1747650360352,0.89248054,103050.0,103040.0,0.04564503]
[1747650360563,1.28184054,103050.0,103040.0,0.04564503]
[1747650362789,0.58344054,103050.0,103040.0,0.04564503]
[1747650362991,0.39942437,103050.0,103040.0,0.25915404]
[1747650363198,0.61239194,103050.0,103040.0,0.05534999]
[1747650363407,0.21348792,103050.0,103040.0,0.24944936]
[1747650363613,0.22271009,103050.0,103040.0,0.61856284]
[1747650363819,0.60270721,103060.0,103050.0,0.24448812]
[1747650364021,0.62211271,103060.0,103050.0,0.23478447]
[1747650364227,0.61241029,103060.0,103050.0,0.25055221]
[1747650364616,0.61241029,103060.0,103050.0,0.2699596]
[1747650364799,0.61241029,103060.0,103050.0,0.29042675]
[1747650365195,0.61441029,103060.0,103050.0,0.29042675]
[1747650365399,0.21746721,103060.0,103050.0,0.63042618]
[1747650365605,0.02340494,103060.0,103050.0,0.63042628]
[1747650365808,0.22686745,103060.0,103050.0,0.63042581]
[1747650366019,0.43063205,103060.0,103050.0,0.62072235]
[1747650367187,0.42092916,103060.0,103050.0,0.62072235]
[1747650367368,0.43063205,103060.0,103050.0,0.62072235]
[1747650368381,0.42092916,103060.0,103050.0,0.62072235]
[1747650369038,0.43063205,103060.0,103050.0,0.62072235]
[1747650369636,0.42092916,103060.0,103050.0,0.62072235]
[1747650371416,0.43063205,103060.0,103050.0,0.62072235]
[1747650371634,0.43063205,103060.0,103050.0,0.61101946]
[1747650371635,0.43063271,103060.0,103050.0,0.61101946]
[1747650371851,0.43063271,103060.0,103050.0,0.63042647]
[1747650372701,0.42092972,103060.0,103050.0,0.63042581]
[1747650373400,0.41122683,103060.0,103050.0,0.63042581]
[1747650374302,0.43063271,103060.0,103050.0,0.61101899]
[1747650374523,0.60598759,103060.0,103050.0,0.35682751]
[1747650374974,0.9685175,103060.0,103050.0,0.01682751]
[1747650375182,0.73529699,103060.0,103050.0,0.01682751]
[1747650375390,0.73529699,103060.0,103050.0,0.01009758]
[1747650375834,0.9839175,103060.0,103050.0,0.01009758]
[1747650376741,0.9839175,103060.0,103050.0,0.00606391]
[1747650376949,0.20378437,103050.0,103040.0,0.00551504]
[1747650377165,0.30109377,103050.0,103040.0,0.00551504]
[1747650377394,0.30109377,103050.0,103040.0,0.01157859]
[1747650378472,0.31719377,103050.0,103040.0,0.0105756]
[1747650380177,0.33299377,103050.0,103040.0,0.0105756]
[1747650381604,0.58161428,103050.0,103040.0,0.0105756]
[1747650382600,1.00497728,103050.0,103040.0,0.0105756]
[1747650382837,2.48699813,103050.0,103040.0,0.0105756]
[1747650383052,2.52175563,103050.0,103040.0,0.00451205]
[1747650383274,2.56155831,103050.0,103040.0,0.00451205]
[1747650383493,2.55155831,103050.0,103040.0,0.00451205]
[1747650383917,2.53600584,103050.0,103040.0,0.00451205]
[1747650384126,2.52600584,103050.0,103040.0,0.00451205]
[1747650384335,2.52600584,103050.0,103040.0,0.0005]
[1747650384552,2.53100584,103050.0,103040.0,0.0005]
[1747650384974,2.45357275,103050.0,103040.0,0.0005]
[1747650385189,2.41881525,103050.0,103040.0,0.0005]
[1747650385631,2.42581525,103050.0,103040.0,0.0005]
[1747650385835,2.42081525,103050.0,103040.0,0.0005]
[1747650386035,2.43081525,103050.0,103040.0,0.0005]
[1747650386244,2.43781525,103050.0,103040.0,0.0005]
[1747650386639,1.73941525,103050.0,103040.0,0.0005]
[1747650388037,1.93325525,103050.0,103040.0,0.0005]
[1747650388243,1.84594585,103050.0,103040.0,0.0005]
[1747650388442,1.65210585,103050.0,103040.0,0.0005]
[1747650388673,2.03962585,103050.0,103040.0,0.0005]
[1747650388863,2.03874585,103050.0,103040.0,0.0005]
[1747650389057,2.14586573,103050.0,103040.0,0.0005]
[1747650393879,0.22380415,103040.0,103030.0,0.00013589]
[1747650394055,0.60113406,103040.0,103030.0,0.00013589]
[1747650394265,0.64973406,103040.0,103030.0,0.00013589]
[1747650394955,0.65473406,103040.0,103030.0,0.00013589]
[1747650395168,1.03515582,103040.0,103030.0,0.00013589]
[1747650395542,1.04015582,103040.0,103030.0,0.00013589]
[1747650395696,0.94284642,103040.0,103030.0,0.00013589]
[1747650396095,0.69422591,103040.0,103030.0,0.00013589]
[1747650396778,0.65973406,103040.0,103030.0,0.00013589]
[1747650400422,6.11065342,103040.0,103030.0,0.00013589]
[1747650401593,6.45065342,103040.0,103030.0,0.00013589]
[1747650401812,6.45065342,103040.0,103020.0,0.001]
[1747650401813,0.75406495,103030.0,103020.0,0.001]
[1747650402016,6.43777235,103030.0,103020.0,0.00114345]
[1747650402217,1.24001435,103030.0,103020.0,0.00114345]
[1747650402809,1.93841435,103030.0,103020.0,0.00114345]
[1747650403233,1.94341435,103030.0,103020.0,0.00114345]
[1747650403820,2.01006436,103030.0,103020.0,0.00114345]
[1747650405215,2.00206436,103030.0,103020.0,0.00114345]
[1747650407685,1.30366436,103030.0,103020.0,0.00114345]
[1747650408110,1.23701435,103030.0,103020.0,0.00114345]
[1747650408679,1.58438753,103030.0,103020.0,0.00114345]
[1747650408897,1.62604705,103030.0,103020.0,0.00114345]
[1747650415123,0.21359155,103000.0,102990.0,0.0162]
[1747650415340,1.36780146,103000.0,102990.0,0.03741104]
[1747650416008,1.36780146,103000.0,102990.0,0.04143118]
[1747650416212,1.36780146,103000.0,102990.0,0.04243118]
[1747650418334,1.36780146,103000.0,102990.0,0.04343118]
[1747650419688,1.36780146,103000.0,102990.0,0.01223118]
[1747650420525,1.36780146,103000.0,102990.0,0.01123118]
[1747650420707,1.36880146,103000.0,102990.0,0.01123118]
[1747650421119,1.70880146,103000.0,102990.0,0.01123118]
[1747650421528,1.98756282,103000.0,102990.0,0.01023118]
[1747650421746,2.00436282,103000.0,102990.0,0.00416423]
[1747650422370,2.011736,103000.0,102990.0,0.00416423]
[1747650422587,2.010736,103000.0,102990.0,0.00416423]
[1747650422803,2.1090454,103000.0,102990.0,0.00014409]
[1747650423023,2.14353725,103000.0,102990.0,0.00014409]
[1747650423259,2.14553725,103000.0,102990.0,0.00014409]
[1747650425572,1.72554231,103000.0,102990.0,0.00014409]
[1747650426017,1.72566231,103000.0,102990.0,0.00014409]
[1747650426464,2.013056,103000.0,102990.0,0.00014409]
[1747650428050,2.100442,103000.0,102990.0,0.00014409]
[1747650428209,2.042202,103000.0,102990.0,0.00014409]
[1747650428422,2.1395114,103000.0,102990.0,0.00014409]
[1747650431345,2.1495114,103000.0,102990.0,0.00014409]
[1747650432971,2.14213822,103000.0,102990.0,0.00014409]
[1747650433176,2.17663007,103000.0,102990.0,0.00014409]
[1747650433832,2.14213822,103000.0,102990.0,0.00014409]
[1747650434330,1.90089089,103000.0,102990.0,0.00014409]
[1747650434560,2.1495114,103000.0,102990.0,0.00014409]
[1747650434756,2.1398714,103000.0,102990.0,0.00014409]
[1747650435057,1.75316831,103000.0,102990.0,0.00014409]
[1747650435303,1.36752831,103000.0,102990.0,0.00014409]
[1747650435551,1.75624831,103000.0,102990.0,0.03144409]
[1747650435772,1.75424831,103000.0,102990.0,0.03144409]
[1747650435991,1.74274746,103000.0,102990.0,0.03144409]
[1747650436223,1.36552831,103000.0,102990.0,0.03144409]
[1747650436460,1.75620831,103000.0,102990.0,0.03144409]
[1747650436688,1.4754018,103000.0,102990.0,0.03144409]
[1747650436919,1.36952146,103000.0,102990.0,0.03144409]
[1747650437156,1.37052146,103000.0,102990.0,0.03144409]
[1747650437944,1.37048146,103000.0,102990.0,0.03144409]
[1747650438655,1.12174095,103000.0,102990.0,0.03144409]
[1747650439232,1.37036146,103000.0,102990.0,0.03144409]
[1747650440223,1.12174095,103000.0,102990.0,0.03144409]
[1747650444711,1.37036146,103000.0,102990.0,0.03144409]
[1747650446429,0.92778095,103000.0,102990.0,0.03144409]
[1747650446648,1.12078095,103000.0,102990.0,0.03144409]
[1747650447384,0.92778095,103000.0,102990.0,0.03407091]
[1747650447598,1.12082095,103000.0,102990.0,0.03407091]
[1747650448421,0.92778095,103000.0,102990.0,0.03808898]
[1747650448667,1.12070095,103000.0,102990.0,0.03808898]
[1747650449361,0.83047155,103000.0,102990.0,0.03808898]
[1747650449592,1.01356329,103000.0,102990.0,0.03808898]
[1747650450903,1.01356329,103000.0,102990.0,0.04310402]
[1747650453257,1.01356329,103000.0,102990.0,0.03808898]
[1747650459958,1.3594932,103000.0,102990.0,0.03546216]
[1747650460176,1.11087269,103000.0,102990.0,0.03546216]
[1747650460365,1.3594932,103000.0,102990.0,0.00416216]
[1747650460904,1.11087269,103000.0,102990.0,0.03616216]
[1747650462333,1.11087269,103000.0,102990.0,0.01976216]
[1747650464030,1.11087269,103000.0,102990.0,0.00416216]
[1747650465323,1.11087269,103000.0,102990.0,0.02046216]
[1747650466130,1.3594932,103000.0,102990.0,0.00416216]
[1747650466509,1.3750932,103000.0,102990.0,0.00416216]
[1747650466709,1.3911932,103000.0,102990.0,0.00416216]
[1747650470553,0.5845132,103000.0,102990.0,0.00416216]
[1747650471918,1.3887132,103000.0,102990.0,0.00416216]
[1747650475464,1.3726132,103000.0,102990.0,0.00416216]
[1747650475683,1.3877132,103000.0,102990.0,0.00416216]
[1747650475906,1.30242327,103000.0,102990.0,0.00416216]
[1747650476886,1.13909269,103000.0,102990.0,0.00416216]
[1747650477078,1.30242327,103000.0,102990.0,0.00416216]
[1747650481126,1.46575385,103000.0,102990.0,0.00416216]
[1747650482109,1.45065385,103000.0,102990.0,0.00416216]
[1747650482307,1.28732327,103000.0,102990.0,0.00416216]
[1747650483996,1.27172327,103000.0,102990.0,0.00416216]
[1747650484300,1.28732327,103000.0,102990.0,0.00416216]
[1747650484931,1.30362327,103000.0,102990.0,0.00416216]
[1747650485154,1.46695385,103000.0,102990.0,0.00416216]
[1747650485792,1.43505385,103000.0,102990.0,0.00416216]
[1747650486011,1.10839269,103000.0,102990.0,0.00416216]
[1747650486220,1.10839269,103000.0,102990.0,0.03566216]
[1747650486959,1.10834124,103000.0,102990.0,0.03566216]
[1747650488494,0.91590124,103000.0,102990.0,0.03566216]
[1747650488686,1.10830124,103000.0,102990.0,0.03566216]
[1747650488903,0.30414124,103000.0,102990.0,0.03566216]
[1747650489106,0.49654124,103000.0,102990.0,0.03566216]
[1747650490142,0.49654124,103000.0,102990.0,0.03828898]
[1747650490143,0.59167184,103000.0,102990.0,0.03828898]
[1747650490959,0.58201475,103000.0,102990.0,0.04330402]
[1747650492195,0.38961475,103000.0,102990.0,0.04330402]
[1747650492428,0.38961475,103000.0,102990.0,0.61633521]
[1747650492429,0.01270798,103000.0,102990.0,0.61633521]
[1747650492650,0.20510788,103000.0,102990.0,0.61633521]
[1747650493086,0.21481605,103000.0,102990.0,0.61633521]
[1747650493294,0.20510788,103000.0,102990.0,0.61633521]
[1747650493442,0.21381595,103000.0,102990.0,0.61633521]
[1747650493645,0.21181595,103000.0,102990.0,0.61633521]
[1747650494068,0.21181595,103000.0,102990.0,0.61132017]
[1747650495736,0.20210788,103000.0,102990.0,0.61132017]
[1747650495947,0.21359061,103000.0,102990.0,0.60668722]
[1747650496156,0.02912422,103000.0,102990.0,0.63581503]
[1747650496497,0.02912422,103000.0,102990.0,0.64251812]
[1747650497311,0.01941605,103000.0,102990.0,0.64251812]
[1747650500197,0.59838826,103010.0,103000.0,0.20651011]
[1747650500417,0.59838769,103010.0,103000.0,0.25782673]
[1747650500672,0.40594388,103020.0,103010.0,0.23759051]
[1747650500917,0.41565016,103020.0,103010.0,0.03372682]
[1747650501167,0.40594388,103020.0,103010.0,0.03372682]
[1747650501830,0.40594388,103020.0,103010.0,0.04276467]
[1747650505240,0.40594388,103020.0,103010.0,0.03774489]
[1747650507003,0.40594388,103020.0,103010.0,0.24160858]
[1747650507202,0.41560931,103020.0,103010.0,0.26102359]
[1747650507406,0.42531682,103020.0,103010.0,0.24662836]
[1747650507564,0.42531682,103020.0,103010.0,0.04276467]
[1747650507767,0.42531682,103020.0,103010.0,0.24662836]
[1747650508001,0.41561054,103020.0,103010.0,0.04276467]
[1747650508390,0.41561054,103020.0,103010.0,0.24662836]
[1747650508610,0.41561054,103020.0,103010.0,0.05447246]
[1747650508821,0.41561054,103020.0,103010.0,0.05647246]
[1747650509763,0.22329054,103020.0,103010.0,0.05647246]
[1747650509989,0.41557054,103020.0,103010.0,0.05647246]
[1747650511088,0.41557054,103020.0,103010.0,0.04676467]
[1747650511389,0.41557054,103020.0,103010.0,0.05647246]
[1747650513243,0.39115741,103020.0,103010.0,0.04676467]
[1747650514095,0.39115741,103020.0,103010.0,0.05647246]
[1747650514869,0.39115741,103020.0,103010.0,0.25062836]
[1747650516419,0.40086398,103020.0,103010.0,0.25062836]
[1747650516540,0.40086398,103020.0,103010.0,0.27004357]
[1747650516767,0.40086398,103020.0,103010.0,0.26033606]
[1747650517515,0.20858398,103020.0,103010.0,0.26033606]
[1747650517748,0.41052922,103020.0,103010.0,0.28945782]
[1747650518005,0.42023588,103020.0,103010.0,0.27975069]
[1747650518256,0.42994244,103020.0,103010.0,0.27975079]
[1747650518664,0.23770244,103020.0,103010.0,0.27975079]
[1747650518669,0.201946,103020.0,103010.0,0.28945792]
[1747650518921,0.61749976,103030.0,103020.0,0.25738396]
[1747650519157,0.23293976,103030.0,103020.0,0.26709034]
[1747650519406,0.42517976,103030.0,103020.0,0.26709034]
[1747650519806,0.42517976,103030.0,103020.0,0.26709043]
[1747650520028,0.39517976,103030.0,103020.0,0.2711085]
[1747650520233,0.40488557,103030.0,103020.0,0.26140203]
[1747650520417,0.40488557,103030.0,103020.0,0.2711085]
[1747650520616,0.40488557,103030.0,103020.0,0.26140203]
[1747650521328,0.40488557,103030.0,103020.0,0.2731249]
[1747650522315,0.40488557,103030.0,103020.0,0.28283137]
[1747650522865,0.40488557,103030.0,103020.0,0.2731249]
[1747650524034,0.40488557,103030.0,103020.0,0.25371157]
[1747650524241,0.40488557,103030.0,103020.0,0.26341823]
[1747650525253,0.40488557,103030.0,103020.0,0.2731248]
[1747650525456,0.40488557,103030.0,103020.0,0.26341823]
[1747650526487,0.40488557,103030.0,103020.0,0.25371157]
[1747650526687,0.39518014,103030.0,103020.0,0.01836776]
[1747650527048,0.39518014,103030.0,103020.0,0.22221167]
[1747650527256,0.39518014,103030.0,103020.0,0.23191842]
[1747650527660,0.39518014,103030.0,103020.0,0.24162508]
[1747650527876,0.39518014,103030.0,103020.0,0.23191842]
[1747650528374,0.39518014,103030.0,103020.0,0.01574094]
[1747650528587,0.40127433,103030.0,103020.0,0.01574094]
[1747650528802,0.38547433,103030.0,103020.0,0.01836776]
[1747650529008,0.38543433,103030.0,103020.0,0.01836776]
[1747650529232,0.38543433,103030.0,103020.0,0.01574094]
[1747650529233,0.51324373,103030.0,103020.0,0.01574094]
[1747650529891,0.51324373,103030.0,103020.0,0.00903785]
[1747650535212,0.70544373,103030.0,103020.0,0.00903785]
[1747650535632,0.70544373,103030.0,103020.0,0.01574094]
[1747650538303,0.69040373,103030.0,103020.0,0.01574094]
[1747650539870,0.67490373,103030.0,103020.0,0.01574094]
[1747650540308,0.3099545,103030.0,103020.0,0.24162423]
[1747650540551,0.42509995,103030.0,103020.0,0.27332442]
[1747650540749,0.42509995,103030.0,103020.0,0.26361804]
[1747650541083,0.41539414,103030.0,103020.0,0.27332432]
[1747650541327,0.43480577,103030.0,103020.0,0.26361804]
[1747650541507,0.24264577,103030.0,103020.0,0.26361814]
[1747650541655,0.43480577,103030.0,103020.0,0.26361814]
[1747650542273,0.43480577,103030.0,103020.0,0.27332461]
[1747650542450,0.42510062,103030.0,103020.0,0.22221148]
[1747650542962,0.42510062,103030.0,103020.0,0.22689827]
[1747650543139,0.42510062,103030.0,103020.0,0.2171917]
[1747650544663,0.42510062,103030.0,103020.0,0.20748504]
[1747650544869,0.41539537,103030.0,103020.0,0.2171917]
[1747650545231,0.41539537,103030.0,103020.0,0.23978504]
[1747650545443,0.21352899,103030.0,103020.0,0.26890445]
[1747650545600,0.20186515,103030.0,103020.0,0.26890445]
[1747650545804,0.41539442,103030.0,103020.0,0.26890445]
[1747650546014,0.41539442,103030.0,103020.0,0.26890454]
[1747650546843,0.41539442,103030.0,103020.0,0.25919826]
[1747650547038,0.42510014,103030.0,103020.0,0.26890464]
[1747650547954,0.42510014,103030.0,103020.0,0.01072116]
[1747650547955,0.40568955,103030.0,103020.0,0.01072116]
[1747650548189,0.40568955,103030.0,103020.0,0.01334798]
[1747650548392,0.43658955,103030.0,103020.0,0.01072116]
[1747650548596,0.53389895,103030.0,103020.0,0.01334798]
[1747650549099,0.53389895,103030.0,103020.0,0.0183772]
[1747650551060,0.53389895,103030.0,103020.0,0.01575038]
[1747650551687,0.53389895,103030.0,103020.0,0.01072116]
[1747650552119,0.53389895,103030.0,103020.0,0.01334798]
[1747650553797,0.50295895,103030.0,103020.0,0.01334798]
[1747650554015,0.39594355,103030.0,103020.0,0.25859836]
[1747650554223,0.22323414,103030.0,103020.0,0.26830483]
[1747650554527,0.22323414,103030.0,103020.0,0.25859836]